[Event "Karpov Trophy XVI 2018"]
[Site "Cap d/^Agde"]
[Date "2018.11.03"]
[Round "9"]
[White "Jehan, Julien"]
[Black "Jarreton, Herve"]
[Result "1-0"]
[ECO "D70"]
[WhiteElo "1991"]
[BlackElo "1950"]
[Annotator "NA"]
[PlyCount "137"]
[EventDate "2018.10.27"]
[EventCountry "FRA"]
[SourceTitle "playchess.com"]
[Source "ChessBase"]
[SourceQuality "1"]
[TimeControl "5400+30"]

1. d4 {[%emt 0:00:00]} d5 {[%emt 0:00:00]} 2. Nf3 {[%emt 0:00:00]} Nf6 {[%emt 0:00:00]} 3. c4 {[%emt 0:00:41]} c6 {[%emt 0:00:29]} 4. Nbd2 {[%emt 0:00:20]} Bf5 {[%emt 0:05:13]} 5. Nh4 {[%emt 0:00:09] D11: Slav Defence: 3 Nf3 sidelines and 3...Nf6 4 e3 Bg4} (5. Qb3 Qb6 6. Nh4 Be4 7. e3 e6 8. Be2 Be7 9. Nxe4 dxe4 10. g3 c5 11. Bd2 cxd4 12. exd4 Nc6 13. Bc3 O-O-O {1-0 (49) Mamedyarov,S (2808)-So,W (2778) Leuven 2018}) 5... Be6 {[%emt 0:02:43]} 6. e3 {[%emt 0:09:03] LiveBook: 76 Games} Qa5 $146 {[%emt 0:08:06]} ({Predecessor:} 6... g6 7. b3 Bg7 8. Bb2 O-O 9. Be2 Ne4 10. O-O c5 11. Nxe4 dxe4 12. Qc2 f5 {0-1 (54) Svane,R (2595)-Van Foreest,J (2609) Germany 2017}) 7. Qb3 {[%emt 0:03:39]} Nbd7 $2 {[%emt 0:06:29]} (7... b6 $11) 8. Qc3 $2 {[%emt 0:06:57]} (8. Qxb7 $18 Rb8 9. Qxc6) 8... Qxc3 {[%emt 0:03:22]} 9. bxc3 {[%emt 0:00:02]} dxc4 {[%emt 0:00:16]} 10. Bxc4 {[%emt 0:05:17]} Bxc4 {[%emt 0:02:26]} 11. Nxc4 {[%emt 0:00:07]} e6 {[%emt 0:05:42]} 12. Nf3 {[%emt 0:09:49]} Ne4 {[%emt 0:03:28]} 13. Bd2 {[%emt 0:06:23]} f6 {[%emt 0:03:15]} 14. Ke2 {[%emt 0:05:22]} O-O-O {[%emt 0:01:45]} 15. Rhb1 {[%emt 0:03:15]} Kc7 {[%emt 0:07:25]} 16. a4 {[%emt 0:01:24]} g5 {[%emt 0:05:30]} 17. Rb3 $11 {[%emt 0:01:37]} g4 {[%emt 0:09:49]} 18. Ne1 {[%emt 0:01:10]} e5 {[%emt 0:02:16]} 19. Nd3 {[%emt 0:02:07]} exd4 {[%emt 0:00:33]} 20. cxd4 {[%emt 0:00:40]} Nxd2 {[%emt 0:01:02]} 21. Nxd2 {[%emt 0:01:20]} Rg8 {[%emt 0:10:36]} 22. Rab1 {[%emt 0:02:29]} b6 {[%emt 0:00:08]} 23. Rc1 {[%emt 0:04:51]} Nb8 {[%emt 0:03:52]} 24. Nf4 {[%emt 0:01:50]} Kb7 {[%emt 0:01:24]} 25. Ne4 {[%emt 0:01:31]} Be7 {[%emt 0:00:58]} 26. a5 {[%emt 0:06:40]} f5 {[%emt 0:02:04]} 27. Ng3 {[%emt 0:02:39]} Bd6 {[%emt 0:00:17]} 28. Nd3 {[%emt 0:04:42]} Bxg3 {[%emt 0:00:33]} 29. hxg3 {[%emt 0:00:22]} Rd5 {[%emt 0:01:03]} 30. axb6 {[%emt 0:03:19]} axb6 {[%emt 0:00:07]} 31. Ra1 {[%emt 0:01:44]} Nd7 {[%emt 0:04:56]} 32. Rba3 {[%emt 0:00:54]} Rb8 {[%emt 0:01:56]} 33. Ra7+ {[%emt 0:01:26]} Kc8 {[%emt 0:00:01]} 34. Rc1 {[%emt 0:02:08]} c5 {[%emt 0:00:50]} 35. Nb4 {[%emt 0:03:37]} Rd6 {[%emt 0:00:09]} 36. Na6 {[%emt 0:00:41]} Rb7 {[%emt 0:00:51]} 37. Ra8+ {[%emt 0:00:25]} Nb8 {[%emt 0:00:08]} 38. dxc5 {[%emt 0:02:37]} Rc6 {[%emt 0:00:01]} 39. Rh1 {[%emt 0:02:23]} bxc5 {[%emt 0:00:08]} 40. Rxb8+ {[%emt 0:01:40]} Rxb8 {[%emt 0:00:07]} 41. Nxb8 {[%emt 0:00:03]} Kxb8 {[%emt 0:00:06]} 42. Rxh7 {[%emt 0:00:38]} Rd6 {[%emt 0:02:23]} 43. Rh5 {[%emt 0:03:36]} Rd5 {[%emt 0:00:18]} 44. e4 {[%emt 0:01:03]} Rd4 {[%emt 0:01:34]} 45. Rxf5 {[%emt 0:01:08]} Rxe4+ {[%emt 0:00:55]} 46. Kd3 {[%emt 0:00:18]} Rd4+ {[%emt 0:01:41]} 47. Kc3 {[%emt 0:00:04]} Ra4 {[%emt 0:00:44]} 48. Rxc5 {[%emt 0:00:28]} Ra2 {[%emt 0:00:05]} 49. Rf5 {[%emt 0:00:14]} Kc7 {[%emt 0:00:04]} 50. Kd4 {[%emt 0:00:16]} Kd6 {[%emt 0:00:03]} 51. Ke3 {[%emt 0:00:59]} Ke6 {[%emt 0:00:12]} 52. Rb5 {[%emt 0:00:49]} Kf6 {[%emt 0:00:34]} 53. Rd5 {[%emt 0:00:57]} Rb2 {[%emt 0:00:46]} 54. Rd3 {[%emt 0:00:16]} Ra2 {[%emt 0:00:26]} 55. Rb3 {[%emt 0:00:06]} Rc2 {[%emt 0:00:24]} 56. Rb4 {[%emt 0:00:59]} Kg5 {[%emt 0:00:13]} 57. f4+ {[%emt 0:00:27]} Kf6 {[%emt 0:00:18]} 58. Rb6+ {[%emt 0:00:11]} Kf7 {[%emt 0:00:10]} 59. f5 {[%emt 0:00:45]} Rc4 {[%emt 0:01:06]} 60. Re6 {[%emt 0:00:19]} Ra4 {[%emt 0:03:24]} 61. Re4 {[%emt 0:00:14]} Ra2 {[%emt 0:01:31]} 62. Kf4 {[%emt 0:00:21]} Rxg2 {[%emt 0:01:18]} 63. Kxg4 {[%emt 0:00:08]} Rf2 {[%emt 0:00:12]} 64. Kg5 {[%emt 0:00:13]} Rg2 {[%emt 0:00:19]} 65. g4 {[%emt 0:00:06]} Rh2 {[%emt 0:00:04]} 66. Ra4 {[%emt 0:00:10]} Kg7 {[%emt 0:00:10]} 67. Ra7+ {[%emt 0:00:07]} Kf8 {[%emt 0:00:19]} 68. Kg6 {[%emt 0:00:14]} Rg2 {[%emt 0:00:10]} 69. g5 {[%emt 0:00:16]} 1-0

[Event "Karpov Trophy XVI 2018"]
[Site "Cap d/^Agde"]
[Date "2018.11.03"]
[Round "9"]
[White "Pascal, Jonathan"]
[Black "Gautier, Nathan"]
[Result "0-1"]
[ECO "B46"]
[WhiteElo "1816"]
[BlackElo "1933"]
[Annotator "NA"]
[PlyCount "62"]
[EventDate "2018.10.27"]
[EventCountry "FRA"]
[SourceTitle "playchess.com"]
[Source "ChessBase"]
[SourceQuality "1"]
[TimeControl "5400+30"]

1. e4 {[%emt 0:00:00]} c5 {[%emt 0:00:22]} 2. Nf3 {[%emt 0:00:00]} e6 {[%emt 0:00:05]} 3. d4 {[%emt 0:00:00]} cxd4 {[%emt 0:00:04]} 4. Nxd4 {[%emt 0:00:00]} a6 {[%emt 0:00:05]} 5. Nc3 {[%emt 0:00:00]} Nc6 {[%emt 0:00:05]} 6. Nxc6 {[%emt 0:01:27]} bxc6 {[%emt 0:00:06]} 7. Bd3 {[%emt 0:00:25]} Qc7 {[%emt 0:02:50]} 8. O-O {[%emt 0:00:21]} d5 {[%emt 0:01:06] B46: Sizilianisch (Paulsen/Taimanow-Variante)} (8... Nf6 9. Qe2 d5 10. Bg5 Bb7 11. f4 h6 12. Bh4 Be7 13. Bg3 O-O 14. e5 Ne8 15. f5 exf5 16. Bxf5 Qb6+ 17. Kh1 g6 {1-0 (34) Wei,Y (2740)-Ivanchuk,V (2732) Hoogeveen 2017}) 9. Re1 {[%emt 0:05:20]} Bb7 {[%emt 0:07:26] LiveBook: 41 Games} 10. Qf3 {[%emt 0:17:51]} d4 {[%emt 0:04:49]} (10... Bd6 $11) 11. Ne2 {[%emt 0:01:26]} ({Better is} 11. Bf4 $16 e5 12. Nd5) 11... c5 {[%emt 0:01:25]} 12. Bc4 $146 {[%emt 0:11:06]} ({Vorgänger:} 12. c3 Bd6 13. cxd4 cxd4 14. Qh3 e5 15. Bd2 Ne7 16. f4 {0-1 (40) Jansa,V (2495)-Velikov,P (2470) Vrnjacka Banja 1982}) 12... Nf6 {[%emt 0:03:12]} 13. Ng3 {[%emt 0:12:30]} Bd6 {[%emt 0:05:45]} 14. Nh5 {[%emt 0:12:37]} (14. c3 $11) 14... Bxh2+ {[%emt 0:11:27]} 15. Kh1 {[%emt 0:05:08]} Nxh5 {[%emt 0:02:29]} 16. Qxh5 {[%emt 0:00:43]} Bd6 {[%emt 0:01:22]} 17. Bg5 $17 {[%emt 0:06:16]} O-O {[%emt 0:05:06]} 18. Rad1 {[%emt 0:02:56]} Be7 {[%emt 0:05:22]} 19. Bc1 {[%emt 0:16:31]} g6 {[%emt 0:04:12]} 20. Qg4 {[%emt 0:00:51]} e5 {[%emt 0:03:30]} 21. f4 {[%emt 0:01:05]} Kg7 {[%emt 0:20:24]} 22. f5 {[%emt 0:00:37]} Qd6 {[%emt 0:03:23]} 23. Rd3 {[%emt 0:00:53]} h5 {[%emt 0:01:15]} 24. Qe2 {[%emt 0:01:18]} g5 {[%emt 0:02:55]} 25. Kg1 {[%emt 0:01:09]} Qh6 {[%emt 0:05:15]} 26. Rh3 {[%emt 0:01:04]} Rh8 {[%emt 0:00:08]} 27. Kf2 {[%emt 0:00:43]} h4 {[%emt 0:02:15]} 28. Reh1 {[%emt 0:00:29]} Qh5 {[%emt 0:01:15]} 29. Qxh5 {[%emt 0:01:12]} Rxh5 {[%emt 0:00:01]} 30. Bd3 {[%emt 0:00:30]} g4 {[%emt 0:00:38]} 31. Rxh4 {[%emt 0:00:29]} Rxh4 {[%emt 0:00:28]} 0-1